bitfinex-derivatives/quotes_ETHF0:USTF0_20241129
["timestamp","ask_amount","ask_price","bid_price","bid_amount"]
[1732869370652,3.30316783,3566.1,3565.9,0.28038]
[1732869370950,4.40537691,3566.0,3565.9,0.28038]
[1732869371263,4.40537691,3566.0,3565.9,0.36804939]
[1732869372549,4.40537691,3566.0,3565.9,0.08766939]
[1732869372850,4.40537691,3566.0,3565.5,3.48821]
[1732869372851,8.36872749,3566.0,3565.5,3.48821]
[1732869373152,4.40080279,3565.7,3565.6,0.08767582]
[1732869373456,2.85958883,3566.0,3565.6,0.36808582]
[1732869373457,5.50100349,3565.8,3565.6,0.36808582]
[1732869373763,4.0655,3565.7,3565.5,0.28042]
[1732869374061,4.7636,3565.7,3565.6,0.08768142]
[1732869374358,4.7636,3565.7,3565.1,0.28045]
[1732869374359,0.28042,3565.5,3565.1,0.28045]
[1732869374560,3.2078,3565.3,3565.2,0.08768924]
[1732869374756,3.2078,3565.3,3565.2,0.36812924]
[1732869375557,3.2078,3565.3,3565.2,0.08768924]
[1732869377065,4.40159739,3565.3,3565.2,0.08768924]
[1732869377262,4.40159739,3565.4,3565.2,0.08768924]
[1732869377559,3.30103776,3565.3,3564.7,41.0903]
[1732869377763,3.30103776,3565.3,3565.2,0.28044]
[1732869378561,3.30103776,3565.4,3565.0,3.2078]
[1732869378758,3.30103776,3565.4,3565.3,0.28043]
[1732869379058,4.57643776,3565.7,3565.2,0.28044]
[1732869379259,4.57643776,3565.7,3565.4,0.28042]
[1732869379456,3.30103776,3565.6,3565.4,0.28042]
[1732869379659,3.30103776,3565.6,3565.5,0.28042]
[1732869381068,5.67699739,3565.7,3565.5,0.28042]
[1732869383767,4.40159739,3565.6,3565.2,0.4361]
[1732869383970,3.30412856,3565.4,3565.3,0.28043]
[1732869384173,7.60939739,3565.5,3565.3,0.28043]
[1732869384368,7.60939739,3565.5,3565.2,0.4361]
[1732869384669,3.30475091,3565.3,3565.2,0.4361]
[1732869384869,3.30473432,3565.3,3565.2,0.4361]
[1732869385062,3.30473432,3565.3,3565.2,0.71654]
[1732869385464,3.30473432,3565.3,3565.2,0.28044]
[1732869386470,3.30473432,3565.3,3565.2,0.36812528]
[1732869387471,3.30473432,3565.3,3565.2,0.36812512]
[1732869388079,4.40159739,3565.4,3565.3,0.28043]
[1732869388365,4.40159739,3565.4,3565.3,0.36811512]
[1732869388570,7.60939739,3565.5,3565.4,0.28043]
[1732869388770,7.60939739,3565.5,3565.4,0.36811512]
[1732869389467,3.2078,3565.5,3565.4,0.08768512]
[1732869390269,3.2078,3565.5,3565.4,0.36811512]
[1732869390972,7.6157128,3565.5,3565.4,0.36811512]
[1732869391366,3.2078,3565.5,3565.4,0.36811512]
[1732869391869,3.2078,3565.5,3565.4,0.08768512]
[1732869392066,3.48822,3565.5,3565.4,0.08768512]
[1732869392275,8.98968208,3565.5,3565.4,0.08768512]
[1732869392575,3.2078,3565.5,3565.0,0.28045]
[1732869392771,4.40822963,3565.2,3565.1,0.08769118]
[1732869393076,4.68866963,3565.2,3565.1,0.08769118]
[1732869393279,8.08949587,3565.4,3565.1,0.08769118]
[1732869393280,5.79072704,3565.3,3565.1,0.08769118]
[1732869393574,5.51028704,3565.3,3565.2,0.08769118]
[1732869394075,5.79071704,3565.3,3565.2,0.08769118]
[1732869394274,5.51028704,3565.4,3564.7,40.8]
[1732869394573,3.2078,3565.5,3564.7,40.8]
[1732869394574,2.20406256,3564.8,3564.7,40.8]
[1732869394768,3.30609385,3564.9,3564.8,0.28047]
[1732869394968,3.30609385,3564.9,3564.8,0.36816437]
[1732869395772,0.4372,3565.0,3564.9,0.28047]
[1732869395973,0.4372,3565.0,3564.9,0.36816437]
[1732869398074,0.4372,3565.0,3564.9,0.36816284]
[1732869398270,3.7427635,3565.0,3564.9,0.36816284]
[1732869398472,0.4372,3565.0,3564.9,0.36816284]
[1732869400073,0.4372,3565.0,3564.9,0.08769284]
[1732869400778,0.4372,3565.0,3564.9,0.36816284]
[1732869401179,0.4372,3565.0,3564.9,0.28047]
[1732869401372,0.4372,3565.0,3564.9,0.36816413]
[1732869405373,3.74196209,3565.0,3564.9,0.36816413]
[1732869405569,3.30476209,3565.0,3564.9,0.36816413]
[1732869405878,4.40812513,3565.2,3564.9,0.36816413]
[1732869405879,4.40812513,3565.3,3564.9,0.08769413]
[1732869406068,4.40812513,3565.3,3565.2,0.28044]
[1732869406069,4.85272513,3565.3,3565.2,0.28044]
[1732869406274,4.85272513,3565.3,3565.2,0.36813413]
[1732869406575,0.4446,3565.3,3565.2,0.08769413]
[1732869406782,4.85272513,3565.3,3565.2,0.08769413]
[1732869406977,0.4446,3565.3,3565.2,0.36813413]
[1732869408380,0.4446,3565.3,3565.2,0.08769413]
[1732869408575,0.4446,3565.3,3565.2,0.36813413]
[1732869409571,0.4446,3565.3,3565.2,0.36812842]
[1732869410175,4.85272513,3565.3,3565.2,0.36812842]
[1732869410369,0.4446,3565.3,3565.2,0.36812842]
[1732869410582,5.27592513,3565.3,3565.2,0.36812842]
[1732869411180,6.52277038,3565.3,3565.2,0.36812842]
[1732869411780,6.52277038,3565.3,3565.2,0.08768842]
[1732869411781,2.11464525,3565.3,3565.2,0.08768842]
[1732869412278,2.39507525,3565.3,3565.2,0.08768842]
[1732869412586,6.37808704,3565.3,3565.2,0.08768842]
[1732869412777,2.11464525,3565.3,3565.2,0.08768842]
[1732869412978,7.62493229,3565.3,3565.2,0.08768842]
[1732869413381,7.90536229,3565.3,3565.2,0.08768842]
[1732869414186,6.37808704,3565.3,3565.2,0.08768842]
[1732869414479,7.62493229,3565.3,3565.2,0.08768842]
[1732869414786,7.62493229,3565.3,3565.1,0.28045]
[1732869415084,7.62493229,3565.3,3565.2,0.08769484]
[1732869415285,0.8678,3565.3,3565.2,0.36813484]
[1732869415581,2.11464525,3565.3,3565.2,0.36813484]
[1732869416182,2.11464525,3565.3,3565.2,0.08769484]
[1732869416974,2.11464525,3565.3,3564.7,0.4297]
[1732869417288,4.41061812,3565.0,3564.9,0.28047]
[1732869417587,5.51327265,3565.1,3564.9,0.08769431]
[1732869417791,5.51327265,3565.1,3565.0,0.36814431]
[1732869418288,5.51327265,3565.1,3565.0,0.36814672]
[1732869420998,5.51327265,3565.1,3565.0,0.28045]
[1732869421281,5.51327265,3565.1,3565.0,0.36814515]
[1732869421484,6.7601179,3565.2,3565.0,0.08769515]
[1732869421687,6.7601179,3565.2,3565.1,0.36814515]
[1732869421884,5.51327265,3565.2,3565.1,0.36814515]
[1732869422197,0.8678,3565.3,3565.1,0.36814515]
[1732869422198,6.38107265,3565.3,3565.1,0.08769515]
[1732869422490,6.38107265,3565.3,3565.2,0.08769515]
[1732869422789,5.51327265,3565.4,3565.2,0.36813515]
[1732869422981,4.41197855,3565.4,3565.3,0.36811329]
[1732869423179,7.61977855,3565.5,3565.3,0.08768329]
[1732869423382,7.61977855,3565.5,3565.4,0.08768264]
[1732869423692,7.61977855,3565.5,3565.4,0.36811264]
[1732869424189,4.45464525,3565.5,3565.4,0.08768312]
[1732869424386,9.9679179,3565.5,3565.4,0.08768312]
[1732869425588,4.73506525,3565.5,3565.4,0.08768312]
[1732869426487,4.73506525,3565.5,3564.7,1.066]
[1732869426488,4.45464525,3565.5,3565.1,0.28045]
[1732869426687,6.76224201,3565.2,3565.1,0.28045]
[1732869426881,6.76224201,3565.2,3565.1,0.36814269]
[1732869427486,7.17824201,3565.2,3565.1,0.36814269]
[1732869428682,1.66284525,3565.2,3565.1,0.36814269]
[1732869428884,1.66284525,3565.2,3565.1,0.36814317]
[1732869430484,1.66284525,3565.2,3565.1,0.08769317]
[1732869430685,1.66284525,3565.2,3564.5,40.8]
[1732869430686,1.66284525,3565.2,3564.9,0.28047]
[1732869430895,1.24684525,3565.0,3564.9,0.28047]
[1732869431091,1.24684525,3565.0,3564.9,0.36816947]
[1732869431284,6.7632753,3565.0,3564.9,0.36816947]
[1732869431482,1.24684525,3565.0,3564.9,0.36816947]
[1732869431987,6.7632753,3565.0,3564.9,0.36816947]
[1732869432190,1.24684525,3565.0,3564.9,0.08769947]
[1732869432491,6.7632753,3565.0,3564.8,0.28047]
[1732869432691,1.69024525,3564.9,3564.8,0.28047]
[1732869432893,1.69024525,3564.9,3564.8,0.36816919]
[1732869436491,1.69024525,3564.9,3564.8,0.08769919]
[1732869436696,7.4871453,3564.9,3564.8,0.08769919]
[1732869436885,7.2066753,3564.9,3564.8,0.08769919]
[1732869437485,7.2066753,3564.9,3564.8,0.36816919]
[1732869439492,7.2066753,3564.9,3564.8,0.36816891]
[1732869440589,1.69024525,3564.9,3564.8,0.36816891]
[1732869440790,7.2066753,3564.9,3564.8,0.36816891]
[1732869441192,7.2066753,3564.9,3564.8,0.36816905]
[1732869441386,1.69024525,3564.9,3564.8,0.36816905]
[1732869442790,1.24684525,3564.9,3564.8,0.08769905]
[1732869442991,1.24684525,3565.0,3564.9,0.28047]
[1732869443194,1.24684525,3565.0,3564.9,0.36816905]
[1732869443388,1.24684525,3565.0,3564.9,0.08769905]
[1732869443592,4.45464525,3565.1,3564.9,0.08769905]
[1732869443796,0.4275,3565.0,3564.6,0.4424]
[1732869444094,9.9710753,3565.1,3564.7,0.08769665]
[1732869444095,4.41335498,3564.9,3564.7,0.08769665]
[1732869444398,5.66020023,3564.9,3564.8,0.36816665]
[1732869444596,5.66020023,3564.9,3564.8,0.08769665]
[1732869444798,1.24684525,3564.9,3564.8,0.08769665]
[1732869444995,5.51643005,3565.0,3564.9,0.28047]
[1732869445206,4.4132224,3565.0,3564.9,0.28047]
[1732869445795,4.4132224,3565.0,3564.9,0.36816331]
[1732869446398,7.6210224,3565.1,3564.9,0.08769331]
[1732869446597,7.6210224,3565.1,3565.0,0.36815331]
[1732869448194,4.8292224,3565.2,3565.1,0.28045]
[1732869448401,4.8292224,3565.2,3565.1,0.36814331]
[1732869448598,0.416,3565.2,3565.1,0.36814331]
[1732869449105,0.416,3565.2,3565.1,0.36813587]
[1732869449399,4.8292224,3565.2,3565.1,0.28045]
[1732869449707,4.8292224,3565.2,3565.1,0.36813619]
[1732869450106,0.416,3565.2,3565.1,0.36813619]
[1732869451995,5.2846224,3565.3,3565.1,0.08768619]
[1732869451996,4.4132224,3565.3,3565.1,0.08768619]
[1732869452304,0.8792,3565.7,3565.6,0.28041]
[1732869452502,0.8792,3565.7,3565.6,0.36809619]
[1732869457805,0.4474,3565.7,3565.6,0.36809619]
[1732869459410,0.4474,3565.7,3565.6,0.36808401]
[1732869459812,0.4474,3565.7,3565.6,0.36808345]
[1732869460118,0.4474,3565.7,3565.6,41.16808345]
[1732869462111,0.4474,3565.7,3564.5,3.2078]
[1732869462112,3.6552,3565.7,3564.5,3.2078]
[1732869462318,1.24684525,3564.7,3564.6,0.28049]
[1732869463321,1.24684525,3564.9,3564.4,0.4393]
[1732869463513,1.24684525,3564.9,3564.8,0.28047]
[1732869468323,1.271,3565.0,3564.9,0.28047]
[1732869468527,3.30554392,3565.0,3564.7,0.28048]
[1732869468823,3.30554392,3565.2,3565.1,0.28045]
[1732869469129,1.24684525,3565.4,3564.9,40.8]
[1732869469321,3.30536228,3565.3,3565.2,0.28044]
[1732869470516,4.55220753,3565.4,3565.3,0.28043]
[1732869471626,1.24684525,3565.4,3565.3,0.28043]
[1732869471923,1.24684525,3565.4,3564.9,40.8]
[1732869472125,1.24684525,3565.0,3564.9,40.8]
[1732869472430,1.24684525,3565.0,3564.9,41.08047]
[1732869473121,1.24684525,3565.0,3564.9,0.28047]
[1732869473326,5.42822928,3565.0,3564.9,0.28047]
[1732869473725,2.12254525,3565.0,3564.9,0.28047]
[1732869474127,2.12254525,3565.0,3564.9,0.36816787]
[1732869475522,2.12254525,3565.0,3564.9,0.08769787]
[1732869475828,2.12254525,3565.0,3564.9,0.36816787]
[1732869476725,2.12254525,3565.0,3564.9,0.36816783]
[1732869479929,2.12254525,3565.0,3564.9,0.28047]
[1732869480235,2.12254525,3565.0,3564.9,0.36816977]
[1732869480417,2.12254525,3565.0,3564.9,0.36816896]
[1732869482131,6.53050619,3565.0,3564.9,0.36816896]
[1732869482627,5.28366094,3565.0,3564.9,0.36816896]
[1732869482829,6.53050619,3565.0,3564.9,0.36816896]
[1732869484937,4.25796094,3565.0,3564.9,0.36816896]
[1732869485136,3.3058312,3565.2,3564.9,0.08769896]
[1732869485336,3.3058312,3565.2,3565.1,0.28045]
[1732869485530,3.3058312,3565.3,3565.2,0.28044]
[1732869485736,3.3058312,3565.3,3565.2,0.36813896]
[1732869486739,4.55267645,3565.3,3565.2,0.08769896]
[1732869486940,1.24684525,3565.3,3565.2,0.08769896]
[1732869489529,0.28046,3565.1,3564.4,3.2078]
[1732869489838,0.28046,3565.1,3564.6,0.28049]
[1732869489839,1.24684525,3564.7,3564.6,0.28049]
[1732869490236,1.67854525,3564.7,3564.6,0.28049]
[1732869491935,2.12404525,3564.7,3564.6,0.28049]
[1732869493942,5.43087744,3564.7,3564.6,0.28049]
[1732869494546,2.12404525,3564.7,3564.6,0.28049]
[1732869494743,5.43087744,3564.7,3564.6,0.28049]
[1732869495244,2.12404525,3564.7,3564.6,0.28049]
[1732869496238,0.4453,3565.5,3564.4,42.04684525]
[1732869496239,3.30683219,3564.9,3564.4,42.04684525]
[1732869496537,3.30683219,3564.9,3564.8,0.28047]
[1732869496744,1.24684525,3565.3,3564.9,0.28047]
[1732869496944,3.30589459,3565.0,3564.9,0.28047]
[1732869497336,1.24684525,3565.3,3564.8,0.4066]
[1732869497533,3.30593312,3564.9,3564.8,0.68707]
[1732869497948,3.30593312,3565.1,3564.8,0.4066]
[1732869498146,3.30593312,3565.1,3565.0,0.28046]
[1732869499243,1.24684525,3565.3,3565.1,0.28045]
[1732869499548,1.24684525,3565.3,3564.8,0.8251]
[1732869499549,1.24684525,3565.3,3565.2,0.28044]
[1732869501145,0.8376,3565.4,3565.2,0.28044]
[1732869501342,0.4148,3565.4,3565.3,0.28043]
[1732869501546,0.4148,3565.4,3565.3,0.3681162]
[1732869505845,0.4148,3565.4,3565.3,0.28043]
[1732869506047,0.4148,3565.4,3565.3,0.3681144]
[1732869507653,5.92614821,3565.4,3565.3,0.0876844]
[1732869507846,0.4148,3565.4,3565.3,0.0876844]
[1732869508048,5.93031311,3565.4,3565.3,0.0876844]
[1732869508252,0.4148,3565.4,3565.3,0.0876844]
[1732869508454,5.93027669,3565.4,3565.3,0.0876844]
[1732869509449,5.93027669,3565.4,3565.3,0.3681144]
[1732869509659,1.66164525,3565.4,3565.3,0.28043]
[1732869509857,1.66164525,3565.4,3565.3,0.36811527]
[1732869511860,1.66164525,3565.4,3565.3,0.36811719]
[1732869512958,1.66164525,3565.4,3565.3,0.08768719]
[1732869513461,1.66164525,3565.4,3565.3,0.36811692]
[1732869514856,7.17712194,3565.4,3565.3,0.36811692]
[1732869516956,1.66164525,3565.4,3565.3,0.36811692]
[1732869517357,7.17712194,3565.4,3565.3,0.36811692]
[1732869518156,7.17712194,3565.4,3565.3,0.08768692]
[1732869519660,7.17712194,3565.4,3565.3,0.36811692]
[1732869520058,7.17712194,3565.4,3565.2,0.28043]
[1732869520357,7.17712194,3565.4,3565.3,0.36811842]
[1732869520562,7.17712194,3565.4,3565.3,0.08768852]
[1732869521165,7.17712194,3565.4,3565.3,0.36811852]
[1732869521365,1.66164525,3565.4,3565.3,0.36811852]
[1732869521566,1.66164525,3565.4,3565.3,0.08768852]
[1732869521861,1.94207525,3565.4,3565.3,0.08768852]
[1732869522457,1.66164525,3565.4,3565.3,0.08768852]
[1732869522661,1.94207525,3565.4,3565.3,0.08768852]
[1732869523491,1.66164525,3565.4,3564.6,1.12802]
[1732869523683,3.30953238,3564.9,3564.8,0.28047]
[1732869523980,3.30953238,3564.9,3564.8,0.3681621]
[1732869525079,3.30953238,3565.0,3564.9,0.28047]
[1732869525283,3.30953238,3565.0,3564.9,0.3681621]
[1732869525887,7.17753255,3565.4,3565.0,0.28046]
[1732869525888,4.41270984,3565.1,3565.0,0.28046]
[1732869526186,4.41270984,3565.1,3565.0,0.3681521]
[1732869526387,5.5158873,3565.3,3565.0,0.0876921]
[1732869526684,4.41286054,3565.2,3565.1,0.08768815]
[1732869526881,4.41286054,3565.2,3565.1,0.36813815]
[1732869527188,4.41286054,3565.2,3565.1,0.3681379]
[1732869529387,1.24684525,3565.2,3565.1,0.0876879]
[1732869530090,1.24684525,3565.2,3565.1,0.3681379]
[1732869530484,1.24684525,3565.2,3565.1,0.08769084]
[1732869530885,1.24684525,3565.2,3565.1,0.08769086]
[1732869532696,6.76273255,3565.2,3565.1,0.08769086]
[1732869532890,7.04317255,3565.2,3565.1,0.08769086]
[1732869533094,1.52728525,3565.2,3565.1,0.08769086]
[1732869533792,1.24684525,3565.2,3565.1,0.08769086]
[1732869536995,1.52728525,3565.2,3565.1,0.08769086]
[1732869537495,1.24684525,3565.2,3565.1,0.08769086]
[1732869537695,1.52728525,3565.2,3565.1,0.08769086]
[1732869538191,3.6226,3565.4,3565.1,0.08769086]
[1732869538398,3.6226,3565.4,3565.3,0.28043]
[1732869538591,4.86944525,3565.4,3565.3,0.36812086]
[1732869539493,4.86944525,3565.4,3565.3,0.08769086]
[1732869540391,4.86944525,3565.4,3565.3,0.36812086]
[1732869540588,4.86944525,3565.4,3565.3,0.08769086]
[1732869540589,5.51825715,3565.4,3565.3,0.08769086]
[1732869540899,3.91433171,3565.4,3565.3,0.36812086]
[1732869541090,5.51825715,3565.7,3565.6,0.28041]
[1732869541296,5.94575715,3565.8,3565.7,0.2804]
[1732869541592,5.94575715,3565.8,3565.7,0.36807916]
[1732869542995,0.4275,3565.8,3565.7,0.36807916]
[1732869543596,0.4275,3565.8,3565.7,0.2804]
[1732869543802,0.4275,3565.8,3565.7,0.36807584]
[1732869545697,5.51825715,3565.9,3565.8,0.2804]
[1732869545893,5.51825715,3565.9,3565.8,0.36807584]
[1732869546500,6.7651024,3566.1,3566.0,0.28038]
[1732869546696,6.6151024,3566.1,3566.0,0.36805584]
[1732869550408,1.09684525,3566.1,3566.0,0.36805584]
[1732869553412,1.09684525,3566.1,3566.0,0.28038]
[1732869553596,1.09684525,3566.1,3566.0,0.36804721]
[1732869554508,1.09684525,3566.1,3566.0,0.28038]
[1732869557402,1.09684525,3566.1,3565.9,0.28038]
[1732869557902,1.09684525,3566.1,3565.6,40.8]
[1732869558110,1.24684525,3565.7,3565.3,4.6386132]
[1732869558308,0.2804,3565.8,3565.3,4.6386132]
[1732869558309,1.24684525,3565.4,3565.3,4.6386132]
[1732869558607,2.49764525,3565.6,3565.3,4.72629231]
[1732869558803,2.49764525,3565.6,3565.4,0.08767911]
[1732869559001,2.49764525,3565.6,3565.3,4.3581832]
[1732869559204,2.49764525,3565.6,3565.4,0.28043]
[1732869559610,2.49764525,3565.6,3565.4,0.28042]
[1732869559810,2.49764525,3565.6,3565.4,0.28043]
[1732869560109,2.49764525,3565.6,3565.5,0.28042]
[1732869560308,1.2508,3565.6,3565.5,0.28042]
[1732869561011,1.2508,3565.6,3565.5,0.36809814]
[1732869562007,0.8399,3565.6,3565.5,0.36809814]
[1732869562501,4.14478789,3565.6,3565.5,0.36809814]
[1732869563210,0.8399,3565.6,3565.5,0.36809814]
[1732869564013,4.14478789,3565.6,3565.5,0.36809814]
[1732869564713,0.8399,3565.6,3565.5,0.36809814]
[1732869566205,0.8399,3565.6,3565.5,0.3680972]
[1732869568613,3.04279391,3565.6,3565.5,0.3680972]
[1732869570614,3.04279391,3565.6,3565.5,0.28042]
[1732869570923,3.04279391,3565.6,3565.5,0.36809495]
[1732869571912,0.8399,3565.6,3565.5,0.36809495]
[1732869573412,4.14478789,3565.6,3565.5,0.08767495]
[1732869573716,4.14478789,3565.6,3565.2,40.8]
[1732869573717,8.45346393,3565.6,3565.2,40.8]
[1732869574034,1.24684525,3565.3,3565.2,40.8]
[1732869574619,1.65284525,3565.3,3565.2,40.8]
[1732869574919,4.95761757,3565.3,3565.2,40.8]
[1732869575820,4.95761757,3565.3,3564.7,3.2078]
[1732869576122,2.20328917,3565.1,3564.7,4.3468]
[1732869576418,0.4485,3565.0,3564.8,40.8]
[1732869576719,2.65178917,3565.0,3564.9,0.28047]
[1732869576919,0.4485,3565.0,3564.9,0.28047]
[1732869577115,2.65178917,3565.0,3564.9,0.28047]
[1732869577420,0.4485,3565.0,3564.9,0.28047]
[1732869577716,0.4485,3565.0,3564.9,41.08047]
[1732869578212,0.8695,3565.0,3564.9,41.08047]
[1732869579015,0.406,3565.3,3565.2,0.28044]
[1732869579213,0.8283,3565.3,3565.2,0.28044]
[1732869579408,4.13307232,3565.3,3565.2,0.28044]
[1732869579615,0.8283,3565.3,3565.2,0.28044]
[1732869580211,3.30477232,3565.4,3565.1,4.45464525]
[1732869580417,3.30477232,3565.4,3565.3,0.28043]
[1732869580718,3.72577232,3565.5,3565.4,0.28043]
[1732869583413,3.30477232,3565.5,3565.4,0.28043]
[1732869583922,3.30477232,3565.6,3565.5,0.28042]
[1732869584427,5.23436393,3565.7,3565.3,1.24684525]
[1732869584720,5.23436393,3565.7,3565.6,0.28041]
[1732869585821,5.23436393,3565.7,3565.6,0.36808276]
[1732869586021,0.8286,3565.7,3565.6,0.36808276]
[1732869586218,4.40576393,3565.8,3565.7,0.2804]
[1732869586414,4.40576393,3565.8,3565.7,0.36807276]
[1732869586619,4.40576393,3565.9,3565.8,0.2804]
[1732869586821,4.40576393,3565.9,3565.8,0.36807276]
[1732869587416,5.24576393,3566.0,3565.9,0.28039]
[1732869587616,0.84,3566.0,3565.9,0.36806276]
[1732869588123,4.1478548,3566.0,3565.9,0.36806276]
[1732869589023,0.84,3566.0,3565.9,0.36806276]
[1732869591624,0.84,3566.0,3565.9,0.36805423]
[1732869591826,4.14629195,3566.0,3565.9,0.36805423]
[1732869592027,0.84,3566.0,3565.9,0.36805423]
[1732869592321,4.14629537,3566.0,3565.9,0.36805423]
[1732869593027,4.14629537,3566.0,3565.9,41.16805423]
[1732869596021,0.84,3566.0,3565.9,41.16805423]
[1732869598127,0.84,3566.0,3565.9,41.16805312]
[1732869598723,0.4209,3566.0,3565.9,41.08039]
[1732869599831,0.4209,3566.0,3565.9,41.16805269]
[1732869604029,3.72719537,3566.0,3565.9,41.16805269]
[1732869604438,3.30629537,3566.0,3565.9,41.16805269]
[1732869605530,3.30629537,3566.0,3565.9,41.08039]
[1732869605734,3.30629537,3566.0,3565.9,41.16805186]
[1732869606037,3.30629537,3566.0,3565.9,41.16805191]
[1732869606532,0.8565,3566.2,3565.9,41.16805191]
[1732869606533,3.71509537,3566.2,3566.1,0.28037]
[1732869606834,3.71509537,3566.2,3566.1,1.61487716]
[1732869607141,0.4088,3566.2,3566.1,1.61487716]
[1732869608837,0.4055,3566.3,3566.2,0.28036]
[1732869609035,0.4055,3566.3,3566.2,3.57581185]
[1732869609344,0.4055,3566.3,3566.2,3.98651185]
[1732869611330,0.4055,3566.3,3566.2,3.29545185]
[1732869611528,0.4055,3566.3,3566.2,0.36801185]
[1732869611932,0.81,3566.3,3566.2,0.36801185]
[1732869614432,0.81,3566.3,3566.2,0.08765185]
[1732869614635,0.81,3566.3,3566.2,0.36801185]
[1732869616938,0.66,3566.3,3566.2,0.36801185]
[1732869619644,0.66,3566.3,3566.2,0.36801602]
[1732869620042,0.66,3566.3,3566.2,0.28036]
[1732869620242,0.66,3566.3,3566.2,0.36801614]
[1732869620845,0.4337,3566.5,3566.4,0.28035]
[1732869621043,0.4337,3566.5,3566.4,0.36800614]
[1732869621344,0.4337,3566.5,3566.4,1.61485139]
[1732869621646,4.15189537,3566.7,3566.6,0.28033]
[1732869621841,0.8456,3566.7,3566.6,0.36798614]
[1732869623344,4.15189537,3566.7,3566.6,0.36797714]
[1732869623840,3.30629537,3566.8,3566.6,1.33449239]
[1732869624043,3.30629537,3566.9,3566.7,3.29544614]
[1732869624251,3.30629537,3566.9,3566.8,1.61481139]
[1732869624445,3.30629537,3567.0,3566.9,0.28031]
[1732869624650,3.30629537,3567.0,3566.9,0.36795614]
[1732869625447,1.2475,3567.1,3567.0,0.2803]
[1732869625646,1.2475,3567.1,3567.0,0.36794614]
[1732869626243,1.2475,3567.1,3566.9,0.2803]
[1732869626443,3.30360735,3567.0,3566.9,0.2803]
[1732869626647,3.30360735,3567.0,3566.9,0.36794247]
[1732869626842,1.2475,3567.1,3566.8,40.8]
[1732869627048,3.30325615,3567.0,3566.9,0.36795206]
[1732869627444,5.65326393,3567.1,3567.0,0.2803]
[1732869627645,5.65326393,3567.1,3567.0,0.36794206]
[1732869627844,1.2475,3567.1,3567.0,0.08764206]
[1732869629249,5.65260717,3567.1,3567.0,0.36794206]
[1732869629445,5.65300081,3567.1,3567.0,0.36794206]
[1732869629946,5.65300081,3567.1,3567.0,0.2803]
[1732869630348,5.65300081,3567.1,3566.7,1.109]
[1732869630349,1.2475,3567.1,3566.7,1.109]
[1732869630571,5.65327412,3567.1,3567.0,0.2803]
[1732869630744,5.65327412,3567.1,3566.8,0.08764437]
[1732869630944,5.65327412,3567.1,3566.8,0.36795437]
[1732869630945,5.65261937,3567.0,3566.8,0.36795437]
[1732869631154,4.40577412,3566.9,3566.8,0.36795437]
[1732869631347,4.40577412,3566.9,3566.8,0.17529226]
[1732869631547,4.40577412,3566.9,3566.8,0.45561226]
[1732869634054,4.40577412,3566.9,3566.8,0.17528996]
[1732869634250,4.40577412,3566.9,3566.8,0.08764437]
[1732869634455,1.52714525,3567.0,3566.8,0.08764437]
[1732869634456,1.24684525,3567.0,3566.8,0.08764437]
[1732869634758,6.75524807,3567.0,3566.8,0.08764437]
[1732869635055,6.75524807,3567.0,3566.8,0.36795437]
[1732869635257,6.75524807,3567.0,3566.8,0.08764437]
[1732869635554,5.50840282,3566.9,3566.8,0.08764437]
[1732869636148,8.99651282,3566.9,3566.8,0.08764437]
[1732869636362,1.24684525,3566.7,3566.6,0.28033]
[1732869636558,5.65469697,3566.7,3566.6,0.28033]
[1732869637157,7.03557807,3566.7,3565.9,3.2078]
[1732869637360,3.30601749,3566.2,3565.9,3.2078]
[1732869637550,0.8886,3566.1,3566.0,41.08038]
[1732869638050,0.3886,3566.1,3566.0,41.08038]
[1732869638250,3.30601749,3566.2,3566.0,40.8]
[1732869638456,3.30601749,3566.1,3566.0,41.08037]
[1732869641160,3.73581749,3566.1,3566.0,41.08037]
[1732869641459,2.09284525,3566.1,3566.0,40.8]
[1732869641651,6.50086857,3566.1,3566.0,40.8]
[1732869641963,7.88161807,3566.1,3566.0,40.8]
[1732869642263,7.60124807,3566.1,3565.5,3.2078]
[1732869642462,3.3063085,3565.7,3565.6,0.28041]
[1732869642660,3.3063085,3565.7,3565.6,41.08041]
[1732869642956,4.40918155,3565.9,3565.8,0.2804]
[1732869643356,4.40783868,3565.9,3565.6,40.8]
[1732869643664,3.30587885,3565.7,3565.6,41.08041]
[1732869645362,3.30587885,3565.8,3565.6,41.08041]
[1732869645564,0.4061,3565.7,3565.6,41.08041]
[1732869645957,3.71197885,3565.7,3565.6,40.8]
[1732869646762,1.65294525,3565.7,3565.6,40.8]
[1732869646961,6.34118393,3565.7,3565.6,40.8]
[1732869647164,1.93334525,3565.7,3565.6,40.8]
[1732869647459,0.28041,3565.6,3565.2,0.4129]
[1732869647660,3.30411883,3565.4,3565.0,3.2078]
[1732869647863,1.24684525,3565.5,3565.2,0.28044]
[1732869647864,4.55096408,3565.3,3565.2,0.28044]
[1732869648367,3.30411883,3565.3,3565.2,0.28044]
[1732869649366,3.30411883,3565.4,3565.2,0.28044]
[1732869650268,3.30411883,3565.4,3565.0,3.2078]
[1732869650269,1.24684525,3565.3,3565.1,0.28045]
[1732869650467,0.4177,3565.2,3565.1,0.28045]
[1732869650770,0.4177,3565.2,3565.1,0.08768767]
[1732869651069,0.4177,3565.2,3565.0,3.48825]
[1732869651258,0.4222,3565.1,3565.0,3.48825]
[1732869651464,0.4222,3565.1,3565.0,3.57593778]
[1732869651868,1.66904525,3565.1,3564.9,40.8]
[1732869652064,1.66744525,3565.0,3564.3,2.68715714]
[1732869652264,1.24684525,3564.8,3564.5,0.2805]
[1732869652465,0.4173,3564.7,3564.6,41.16818378]
[1732869652667,0.4173,3564.7,3564.6,40.88769378]
[1732869653173,0.4173,3564.7,3564.6,41.16818378]
[1732869653668,0.4173,3564.7,3564.6,40.88769378]
[1732869654275,0.2805,3564.5,3564.2,0.28052]
[1732869654462,1.67754525,3564.4,3564.3,0.08770962]
[1732869654664,1.67754525,3564.4,3564.2,40.8]
[1732869654968,1.67754525,3564.4,3564.2,41.08052]
[1732869655474,0.28051,3564.3,3564.2,40.8]
[1732869656172,0.28052,3564.2,3563.9,0.70804]
[1732869656368,0.4075,3564.1,3563.9,0.70804]
[1732869656569,1.12873,3564.1,3563.9,0.4275]
[1732869656778,0.8482,3564.1,3564.0,40.8]
[1732869658263,0.8482,3564.1,3564.0,41.08054]
[1732869658468,0.8482,3564.1,3564.0,40.8]
[1732869658672,0.8482,3564.1,3564.0,41.08054]
[1732869659877,0.8482,3564.1,3564.0,40.8]